[Event "*** Titled Tuesday Blitz"]
[Site "Chess.com"]
[Date "2020.11.03"]
[Round "11"]
[White "Nikolakis2014"]
[Black "pastouche06"]
[Result "1-0"]
[WhiteElo "2767"]
[BlackElo "2535"]
[TimeControl "180+1"]
[EndTime "12:07:52 PST"]
[Termination "Nikolakis2014 won by resignation"]

1. Nf3 {[%clk 0:03:00.9]} 1... d5 {[%clk 0:02:56.4]} 2. d4 {[%clk 0:03:00.2]}
2... Nf6 {[%clk 0:02:56.1]} 3. c4 {[%clk 0:03:00.3]} 3... e6 {[%clk 0:02:55.7]}
4. g3 {[%clk 0:03:00.1]} 4... dxc4 {[%clk 0:02:53.7]} 5. Bg2 {[%clk 0:03:00.1]}
5... Bd7 {[%clk 0:02:54.3]} 6. Ne5 {[%clk 0:02:59.2]} 6... Bc6 {[%clk 0:02:54]}
7. Nxc6 {[%clk 0:02:58.9]} 7... Nxc6 {[%clk 0:02:54.9]} 8. e3 {[%clk 0:02:57.8]}
8... Qd7 {[%clk 0:02:54.9]} 9. O-O {[%clk 0:02:57.5]} 9... e5 {[%clk 0:02:46.7]}
10. d5 {[%clk 0:02:45.8]} 10... Nb4 {[%clk 0:02:42.2]} 11. Nc3 {[%clk 0:02:44]}
11... c6 {[%clk 0:02:34.2]} 12. e4 {[%clk 0:02:39]} 12... cxd5 {[%clk
0:02:27.3]} 13. exd5 {[%clk 0:02:37.7]} 13... Be7 {[%clk 0:02:13]} 14. b3 {[%clk
0:02:26.7]} 14... cxb3 {[%clk 0:02:01.3]} 15. Qxb3 {[%clk 0:02:25.3]} 15... Nd3
{[%clk 0:02:00.7]} 16. Rd1 {[%clk 0:02:11.2]} 16... Nc5 {[%clk 0:01:58.9]} 17.
Qb5 {[%clk 0:02:05.4]} 17... a6 {[%clk 0:01:51.2]} 18. Qxd7+ {[%clk 0:02:02.3]}
18... Nfxd7 {[%clk 0:01:51]} 19. d6 {[%clk 0:02:01.9]} 19... Bd8 {[%clk
0:01:49.3]} 20. Nd5 {[%clk 0:01:58.2]} 20... Nf6 {[%clk 0:01:38.2]} 21. Ba3
{[%clk 0:01:45.9]} 21... Rc8 {[%clk 0:01:22.3]} 22. Rac1 {[%clk 0:01:20.5]}
22... b6 {[%clk 0:01:21.6]} 23. Nxf6+ {[%clk 0:01:14.1]} 23... Bxf6 {[%clk
0:01:15.7]} 24. d7+ {[%clk 0:01:13.6]} 1-0

[Event "*** Titled Tuesday Blitz"]
[Site "Chess.com"]
[Date "2020.11.03"]
[Round "11"]
[White "chessmadara"]
[Black "sboshaon21"]
[Result "1-0"]
[WhiteElo "2222"]
[BlackElo "2033"]
[TimeControl "180+1"]
[EndTime "12:07:55 PST"]
[Termination "chessmadara won by resignation"]

1. e4 {[%clk 0:03:00.9]} 1... e5 {[%clk 0:02:59.3]} 2. Nf3 {[%clk 0:02:59.7]}
2... Nc6 {[%clk 0:02:59.2]} 3. d4 {[%clk 0:02:59.7]} 3... exd4 {[%clk
0:02:58.2]} 4. Nxd4 {[%clk 0:03:00.6]} 4... Bc5 {[%clk 0:02:58]} 5. Nb3 {[%clk
0:03:00.3]} 5... Bb6 {[%clk 0:02:56.9]} 6. Nc3 {[%clk 0:03:00.3]} 6... d6 {[%clk
0:02:53.2]} 7. Qe2 {[%clk 0:02:59.7]} 7... Nf6 {[%clk 0:02:52]} 8. Bg5 {[%clk
0:02:59.1]} 8... Nd4 {[%clk 0:02:50.5]} 9. Nxd4 {[%clk 0:02:57.7]} 9... Bxd4
{[%clk 0:02:50.6]} 10. Nd5 {[%clk 0:02:49.9]} 10... Bxb2 {[%clk 0:02:34.4]} 11.
Rb1 {[%clk 0:02:49.8]} 11... h6 {[%clk 0:02:19.8]} 12. Bh4 {[%clk 0:02:42]}
12... g5 {[%clk 0:02:10.7]} 13. Rxb2 {[%clk 0:02:37.6]} 13... gxh4 {[%clk
0:02:09.2]} 14. Rb3 {[%clk 0:02:31.5]} 14... Be6 {[%clk 0:02:06.3]} 15. Rxb7
{[%clk 0:02:23]} 15... c6 {[%clk 0:01:38.3]} 16. Nc7+ {[%clk 0:02:21.3]} 16...
Kf8 {[%clk 0:01:35.4]} 17. Nxa8 {[%clk 0:02:19.7]} 17... Qxa8 {[%clk 0:01:32.2]}
18. Qa6 {[%clk 0:02:18.9]} 18... Kg7 {[%clk 0:01:23.1]} 19. Qxa7 {[%clk
0:02:16.6]} 19... Qd8 {[%clk 0:01:11.4]} 20. Bd3 {[%clk 0:02:10.3]} 20... d5
{[%clk 0:01:09.7]} 21. exd5 {[%clk 0:02:03.4]} 21... Bxd5 {[%clk 0:01:04.7]} 22.
O-O {[%clk 0:02:00.1]} 22... h3 {[%clk 0:01:03.6]} 23. g3 {[%clk 0:01:57]} 23...
Qc8 {[%clk 0:00:56.3]} 24. c4 {[%clk 0:01:38.9]} 24... Bg2 {[%clk 0:00:52.2]}
25. Rxf7+ {[%clk 0:01:37.1]} 1-0

[Event "*** Titled Tuesday Blitz"]
[Site "Chess.com"]
[Date "2020.11.03"]
[Round "11"]
[White "tdf98pantani"]
[Black "fcliverpul"]
[Result "1-0"]
[WhiteElo "2727"]
[BlackElo "2429"]
[TimeControl "180+1"]
[EndTime "12:08:01 PST"]
[Termination "tdf98pantani won by resignation"]

1. c4 {[%clk 0:03:00.9]} 1... c6 {[%clk 0:02:51.8]} 2. e4 {[%clk 0:03:00.4]}
2... d5 {[%clk 0:02:51.2]} 3. exd5 {[%clk 0:03:00.2]} 3... cxd5 {[%clk
0:02:52.1]} 4. cxd5 {[%clk 0:03:00.6]} 4... Nf6 {[%clk 0:02:52.4]} 5. Nc3 {[%clk
0:03:00.9]} 5... g6 {[%clk 0:02:51.6]} 6. Bc4 {[%clk 0:02:54.6]} 6... Bg7 {[%clk
0:02:51.4]} 7. d3 {[%clk 0:02:55]} 7... O-O {[%clk 0:02:52]} 8. Nge2 {[%clk
0:02:53.5]} 8... a6 {[%clk 0:02:51.7]} 9. a4 {[%clk 0:02:51.5]} 9... Nbd7 {[%clk
0:02:51.1]} 10. O-O {[%clk 0:02:46.3]} 10... Nb6 {[%clk 0:02:47.2]} 11. Nf4
{[%clk 0:02:39.6]} 11... Bf5 {[%clk 0:02:46]} 12. Qb3 {[%clk 0:02:34.5]} 12...
Rc8 {[%clk 0:02:44.6]} 13. Be3 {[%clk 0:02:31]} 13... Nxc4 {[%clk 0:02:40]} 14.
dxc4 {[%clk 0:02:31]} 14... Ng4 {[%clk 0:02:22.8]} 15. Bb6 {[%clk 0:02:28.6]}
15... Qd7 {[%clk 0:02:21.5]} 16. Rfe1 {[%clk 0:02:21]} 16... g5 {[%clk
0:02:06.4]} 17. Nh5 {[%clk 0:02:19.5]} 17... Bh8 {[%clk 0:02:04.3]} 18. Rad1
{[%clk 0:02:14.4]} 18... Bg6 {[%clk 0:02:02.4]} 19. Ng3 {[%clk 0:02:14.4]} 19...
h6 {[%clk 0:01:49.3]} 20. c5 {[%clk 0:02:03.3]} 20... f5 {[%clk 0:01:26]} 21.
d6+ {[%clk 0:01:59.9]} 21... Bf7 {[%clk 0:01:24.8]} 22. Nd5 {[%clk 0:01:55.2]}
22... exd6 {[%clk 0:01:16.7]} 23. Re7 {[%clk 0:01:33.9]} 23... Qc6 {[%clk
0:01:00.6]} 24. Rxf7 {[%clk 0:01:33.1]} 1-0

[Event "*** Titled Tuesday Blitz"]
[Site "Chess.com"]
[Date "2020.11.03"]
[Round "11"]
[White "ArjunErigaisi2003"]
[Black "Promacherr"]
[Result "1-0"]
[WhiteElo "2975"]
[BlackElo "2705"]
[TimeControl "180+1"]
[EndTime "12:08:14 PST"]
[Termination "ArjunErigaisi2003 won by resignation"]

1. b4 {[%clk 0:03:00.9]} 1... d5 {[%clk 0:02:58.6]} 2. Bb2 {[%clk 0:02:59.5]}
2... Nf6 {[%clk 0:02:58.3]} 3. e3 {[%clk 0:02:57.6]} 3... Bf5 {[%clk 0:02:58.1]}
4. Nf3 {[%clk 0:02:57.1]} 4... e6 {[%clk 0:02:58.4]} 5. a3 {[%clk 0:02:57]} 5...
Nbd7 {[%clk 0:02:57.8]} 6. Be2 {[%clk 0:02:55.2]} 6... h6 {[%clk 0:02:58]} 7.
O-O {[%clk 0:02:55.7]} 7... Bd6 {[%clk 0:02:57.6]} 8. d3 {[%clk 0:02:54]} 8...
O-O {[%clk 0:02:57.6]} 9. Nbd2 {[%clk 0:02:54.6]} 9... c6 {[%clk 0:02:57.6]} 10.
Re1 {[%clk 0:02:54]} 10... Bh7 {[%clk 0:02:55.8]} 11. e4 {[%clk 0:02:49.2]}
11... Qc7 {[%clk 0:02:45.6]} 12. Bf1 {[%clk 0:02:47]} 12... e5 {[%clk
0:02:44.1]} 13. c4 {[%clk 0:02:46]} 13... d4 {[%clk 0:02:21.7]} 14. c5 {[%clk
0:02:38.9]} 14... Be7 {[%clk 0:02:21.6]} 15. Qc2 {[%clk 0:02:38.5]} 15... b6
{[%clk 0:02:21.3]} 16. cxb6 {[%clk 0:02:37]} 16... axb6 {[%clk 0:02:22.2]} 17.
Rec1 {[%clk 0:02:36.9]} 17... c5 {[%clk 0:02:22.4]} 18. g3 {[%clk 0:02:34.8]}
18... Qa7 {[%clk 0:02:18.7]} 19. Nc4 {[%clk 0:02:33.3]} 19... Qb8 {[%clk
0:02:13.3]} 20. b5 {[%clk 0:02:31.4]} 20... Re8 {[%clk 0:02:12.5]} 21. Bh3
{[%clk 0:02:29.8]} 21... Bd6 {[%clk 0:02:08.2]} 22. a4 {[%clk 0:02:26]} 22...
Bc7 {[%clk 0:02:08.3]} 23. Rcb1 {[%clk 0:02:25.6]} 23... g5 {[%clk 0:02:06.3]}
24. Bg2 {[%clk 0:02:23]} 24... Qd8 {[%clk 0:01:56.1]} 25. Bc1 {[%clk 0:02:22]}
25... Re6 {[%clk 0:01:31.1]} 26. Bd2 {[%clk 0:02:18.4]} 26... g4 {[%clk
0:01:25.5]} 27. Nh4 {[%clk 0:02:16.7]} 27... Ne8 {[%clk 0:01:25.4]} 28. Nf5
{[%clk 0:02:10.3]} 28... h5 {[%clk 0:01:25.1]} 29. Qc1 {[%clk 0:02:10.2]} 29...
Nd6 {[%clk 0:01:24.3]} 30. Bg5 {[%clk 0:02:05.7]} 30... Qf8 {[%clk 0:01:17.8]}
31. Ncxd6 {[%clk 0:01:49.5]} 31... Bxd6 {[%clk 0:01:18.7]} 32. a5 {[%clk
0:01:50.3]} 32... Rxa5 {[%clk 0:01:14.8]} 33. Rxa5 {[%clk 0:01:49]} 33... bxa5
{[%clk 0:01:15.7]} 34. b6 {[%clk 0:01:49.9]} 34... Bb8 {[%clk 0:01:15.3]} 35. b7
{[%clk 0:01:49.6]} 35... Rb6 {[%clk 0:01:04.7]} 36. Rxb6 {[%clk 0:01:47.8]}
36... Nxb6 {[%clk 0:01:05.6]} 37. Be7 {[%clk 0:01:48.4]} 37... Qe8 {[%clk
0:01:02]} 38. Qh6 {[%clk 0:01:48]} 38... Bxf5 {[%clk 0:00:53.4]} 39. Bf6 {[%clk
0:01:48]} 1-0

[Event "*** Titled Tuesday Blitz"]
[Site "Chess.com"]
[Date "2020.11.03"]
[Round "11"]
[White "Mbneu"]
[Black "chessmachine14"]
[Result "1-0"]
[WhiteElo "2233"]
[BlackElo "2335"]
[TimeControl "180+1"]
[EndTime "12:08:15 PST"]
[Termination "Mbneu won by checkmate"]

1. d4 {[%clk 0:01:49.8]} 1... Nf6 {[%clk 0:01:50.3]} 2. c4 {[%clk 0:01:49.1]}
2... g6 {[%clk 0:01:50.4]} 3. Nc3 {[%clk 0:01:48.7]} 3... Bg7 {[%clk 0:01:50.6]}
4. e4 {[%clk 0:01:48.5]} 4... d6 {[%clk 0:01:50.9]} 5. f4 {[%clk 0:01:49]} 5...
O-O {[%clk 0:01:50]} 6. Nf3 {[%clk 0:01:49.5]} 6... c5 {[%clk 0:01:50.3]} 7. d5
{[%clk 0:01:49.7]} 7... e6 {[%clk 0:01:50.7]} 8. Be2 {[%clk 0:01:49.9]} 8...
exd5 {[%clk 0:01:50.1]} 9. cxd5 {[%clk 0:01:50.8]} 9... Re8 {[%clk 0:01:49.9]}
10. e5 {[%clk 0:01:50.9]} 10... dxe5 {[%clk 0:01:48.7]} 11. fxe5 {[%clk
0:01:51.8]} 11... Ng4 {[%clk 0:01:49]} 12. e6 {[%clk 0:01:52.4]} 12... fxe6
{[%clk 0:01:49.4]} 13. Bg5 {[%clk 0:01:52.8]} 13... Qb6 {[%clk 0:01:47.8]} 14.
Qd2 {[%clk 0:01:50.8]} 14... exd5 {[%clk 0:01:30.6]} 15. Nxd5 {[%clk 0:01:34.8]}
15... Qxb2 {[%clk 0:01:29]} 16. Qxb2 {[%clk 0:01:31]} 16... Bxb2 {[%clk
0:01:27.1]} 17. Rb1 {[%clk 0:01:31.3]} 17... Ba3 {[%clk 0:01:07.2]} 18. h3
{[%clk 0:01:17.4]} 18... Bf5 {[%clk 0:01:01.8]} 19. Rxb7 {[%clk 0:01:12]} 19...
Ne5 {[%clk 0:00:49.7]} 20. Nf6+ {[%clk 0:01:09.9]} 20... Kf8 {[%clk 0:00:44.8]}
21. Bh6# {[%clk 0:01:07]} 1-0

[Event "*** Titled Tuesday Blitz"]
[Site "Chess.com"]
[Date "2020.11.03"]
[Round "11"]
[White "WiktoriaPOL"]
[Black "kreonx"]
[Result "0-1"]
[WhiteElo "2094"]
[BlackElo "2283"]
[TimeControl "180+1"]
[EndTime "12:08:17 PST"]
[Termination "kreonx won by checkmate"]

1. c4 {[%clk 0:03:00.9]} 1... e5 {[%clk 0:02:59.5]} 2. Nc3 {[%clk 0:03:00.4]}
2... Nc6 {[%clk 0:02:59.8]} 3. Nf3 {[%clk 0:03:00.1]} 3... g6 {[%clk 0:03:00.3]}
4. d4 {[%clk 0:02:59]} 4... exd4 {[%clk 0:02:59.4]} 5. Nxd4 {[%clk 0:02:59.9]}
5... Bg7 {[%clk 0:03:00]} 6. Nc2 {[%clk 0:02:59.5]} 6... d6 {[%clk 0:02:59.5]}
7. g3 {[%clk 0:02:59.2]} 7... Be6 {[%clk 0:02:59]} 8. Nd5 {[%clk 0:02:56.7]}
8... Qd7 {[%clk 0:02:44.7]} 9. Bg2 {[%clk 0:02:54.4]} 9... O-O-O {[%clk
0:02:45.2]} 10. O-O {[%clk 0:02:50.8]} 10... Bh3 {[%clk 0:02:44.6]} 11. Rb1
{[%clk 0:02:37.8]} 11... h5 {[%clk 0:02:43.7]} 12. Bg5 {[%clk 0:02:31]} 12... h4
{[%clk 0:02:40.3]} 13. Bxh4 {[%clk 0:02:29.1]} 13... Bxg2 {[%clk 0:01:48.8]} 14.
Kxg2 {[%clk 0:02:27.8]} 14... g5 {[%clk 0:01:49.3]} 15. Bxg5 {[%clk 0:02:20.8]}
15... Qh3+ {[%clk 0:01:44.1]} 16. Kf3 {[%clk 0:02:18.7]} 16... Qh5+ {[%clk
0:01:36.2]} 17. g4 {[%clk 0:02:17.4]} 17... Qh3+ {[%clk 0:01:21.9]} 18. Kf4
{[%clk 0:02:07.4]} 18... Re8 {[%clk 0:00:56.6]} 19. Qd3 {[%clk 0:01:17.5]} 19...
Be5+ {[%clk 0:00:41.8]} 20. Kf5 {[%clk 0:01:14.6]} 20... Qh7# {[%clk 0:00:36.6]}
0-1

[Event "*** Titled Tuesday Blitz"]
[Site "Chess.com"]
[Date "2020.11.03"]
[Round "11"]
[White "CarlssonLudvig"]
[Black "Vuk2000"]
[Result "1-0"]
[WhiteElo "2444"]
[BlackElo "2613"]
[TimeControl "180+1"]
[EndTime "12:08:39 PST"]
[Termination "CarlssonLudvig won by resignation"]

1. e4 {[%clk 0:03:00.9]} 1... e6 {[%clk 0:03:00.1]} 2. d4 {[%clk 0:03:00.7]}
2... d5 {[%clk 0:03:01]} 3. Nc3 {[%clk 0:03:01]} 3... Bb4 {[%clk 0:03:01]} 4. e5
{[%clk 0:03:00.5]} 4... c5 {[%clk 0:03:01.3]} 5. a3 {[%clk 0:03:00.4]} 5...
Bxc3+ {[%clk 0:03:01.9]} 6. bxc3 {[%clk 0:03:01.3]} 6... Ne7 {[%clk 0:03:01.8]}
7. h4 {[%clk 0:02:59]} 7... b6 {[%clk 0:03:01.5]} 8. Bb5+ {[%clk 0:02:50.6]}
8... Kf8 {[%clk 0:02:49.5]} 9. h5 {[%clk 0:02:36.6]} 9... c4 {[%clk 0:02:32.3]}
10. h6 {[%clk 0:02:36]} 10... g6 {[%clk 0:02:32.4]} 11. Qf3 {[%clk 0:02:35.8]}
11... Qc7 {[%clk 0:02:15.9]} 12. Nh3 {[%clk 0:02:31.1]} 12... a6 {[%clk
0:01:45.9]} 13. Qf6 {[%clk 0:02:30.2]} 13... Rg8 {[%clk 0:01:44.8]} 14. Ng5
{[%clk 0:02:30.2]} 14... Nec6 {[%clk 0:01:36.3]} 15. Bxc6 {[%clk 0:02:14.6]}
15... Nxc6 {[%clk 0:01:35]} 16. a4 {[%clk 0:02:14.8]} 16... Ke8 {[%clk
0:01:13.8]} 17. Nxh7 {[%clk 0:02:06.8]} 17... Qe7 {[%clk 0:01:11.6]} 18. Ba3
{[%clk 0:02:05.6]} 18... Qd8 {[%clk 0:01:02]} 19. Qg7 {[%clk 0:01:42.3]} 19...
Rxg7 {[%clk 0:00:55.8]} 20. hxg7 {[%clk 0:01:42.7]} 20... Kd7 {[%clk 0:00:45.5]}
21. Nf8+ {[%clk 0:01:37.1]} 21... Kc7 {[%clk 0:00:45.6]} 22. g8=Q {[%clk
0:01:37.2]} 22... Qe8 {[%clk 0:00:46.2]} 23. Rh7 {[%clk 0:01:36.2]} 23... Nd8
{[%clk 0:00:46.8]} 24. Qxg6 {[%clk 0:01:30]} 24... Kc6 {[%clk 0:00:43.3]} 25.
Qf6 {[%clk 0:01:25.9]} 25... b5 {[%clk 0:00:42.7]} 26. Be7 {[%clk 0:01:18.1]}
26... Ra7 {[%clk 0:00:38]} 27. Bxd8 {[%clk 0:01:17.4]} 27... Qxf8 {[%clk
0:00:38.2]} 28. axb5+ {[%clk 0:01:17.4]} 28... Kxb5 {[%clk 0:00:38]} 29. Rh8
{[%clk 0:01:11.7]} 1-0

[Event "*** Titled Tuesday Blitz"]
[Site "Chess.com"]
[Date "2020.11.03"]
[Round "11"]
[White "ethylalcohol"]
[Black "natelleka"]
[Result "1-0"]
[WhiteElo "2095"]
[BlackElo "2182"]
[TimeControl "180+1"]
[EndTime "12:08:51 PST"]
[Termination "ethylalcohol won by resignation"]

1. d4 {[%clk 0:03:00.9]} 1... d5 {[%clk 0:02:59.9]} 2. Nf3 {[%clk 0:03:00.9]}
2... c5 {[%clk 0:03:00.1]} 3. c3 {[%clk 0:02:59.3]} 3... cxd4 {[%clk 0:02:57.8]}
4. cxd4 {[%clk 0:03:00.2]} 4... Nf6 {[%clk 0:02:58.2]} 5. Nc3 {[%clk 0:03:00.3]}
5... Nc6 {[%clk 0:02:58.3]} 6. Bf4 {[%clk 0:03:00.5]} 6... Bf5 {[%clk
0:02:57.9]} 7. e3 {[%clk 0:02:57.6]} 7... e6 {[%clk 0:02:56.9]} 8. Bd3 {[%clk
0:02:57.7]} 8... Ne4 {[%clk 0:02:49.2]} 9. O-O {[%clk 0:02:44.1]} 9... Be7
{[%clk 0:02:47.3]} 10. Bxe4 {[%clk 0:02:39.2]} 10... dxe4 {[%clk 0:02:46.3]} 11.
Nd2 {[%clk 0:02:37.4]} 11... e5 {[%clk 0:02:10.9]} 12. dxe5 {[%clk 0:02:16.6]}
12... Qd3 {[%clk 0:02:09.9]} 13. Qb3 {[%clk 0:01:59.8]} 13... Qxd2 {[%clk
0:01:07]} 14. Rad1 {[%clk 0:01:30.1]} 14... Nd4 {[%clk 0:00:53.3]} 15. Qxb7
{[%clk 0:01:03.8]} 15... Ne2+ {[%clk 0:00:26.6]} 16. Nxe2 {[%clk 0:00:50.9]}
16... Qxe2 {[%clk 0:00:19.9]} 17. Qxa8+ {[%clk 0:00:49.7]} 1-0

[Event "*** Titled Tuesday Blitz"]
[Site "Chess.com"]
[Date "2020.11.03"]
[Round "11"]
[White "Balla_Tamas"]
[Black "JoliyRoger"]
[Result "1-0"]
[WhiteElo "2487"]
[BlackElo "2366"]
[TimeControl "180+1"]
[EndTime "12:08:52 PST"]
[Termination "Balla_Tamas won on time"]

1. d4 {[%clk 0:03:00.9]} 1... Nf6 {[%clk 0:02:54.5]} 2. c4 {[%clk 0:02:59.3]}
2... e6 {[%clk 0:02:54.8]} 3. g3 {[%clk 0:02:59.5]} 3... c5 {[%clk 0:02:54.3]}
4. d5 {[%clk 0:02:58.1]} 4... exd5 {[%clk 0:02:54.2]} 5. cxd5 {[%clk 0:02:59]}
5... d6 {[%clk 0:02:55.1]} 6. Bg2 {[%clk 0:02:58.8]} 6... g6 {[%clk 0:02:56]} 7.
Nf3 {[%clk 0:02:59.4]} 7... Bg7 {[%clk 0:02:56.3]} 8. O-O {[%clk 0:02:59.7]}
8... O-O {[%clk 0:02:56.9]} 9. Nc3 {[%clk 0:03:00.4]} 9... a6 {[%clk 0:02:57]}
10. a4 {[%clk 0:02:59.8]} 10... Nbd7 {[%clk 0:02:57.6]} 11. Nd2 {[%clk
0:02:59.7]} 11... Rb8 {[%clk 0:02:49.9]} 12. a5 {[%clk 0:02:58.7]} 12... b5
{[%clk 0:02:45.9]} 13. axb6 {[%clk 0:02:58.8]} 13... Nxb6 {[%clk 0:02:46.6]} 14.
e4 {[%clk 0:02:59.5]} 14... Nfd7 {[%clk 0:02:42.2]} 15. f4 {[%clk 0:02:57.3]}
15... Re8 {[%clk 0:02:33.4]} 16. Qc2 {[%clk 0:02:56]} 16... Ra8 {[%clk
0:02:22.4]} 17. b3 {[%clk 0:02:54.5]} 17... Bd4+ {[%clk 0:01:55]} 18. Kh1 {[%clk
0:02:53]} 18... Qf6 {[%clk 0:01:55.5]} 19. Bb2 {[%clk 0:02:53]} 19... Qg7 {[%clk
0:01:56]} 20. Nf3 {[%clk 0:02:45.1]} 20... Bf6 {[%clk 0:01:52.9]} 21. e5 {[%clk
0:02:39.2]} 21... dxe5 {[%clk 0:01:52.1]} 22. Ne4 {[%clk 0:02:39.9]} 22... exf4
{[%clk 0:00:32.3]} 23. Nxf6+ {[%clk 0:02:37.3]} 23... Nxf6 {[%clk 0:00:32.8]}
24. Ng5 {[%clk 0:02:28]} 24... Bf5 {[%clk 0:00:30.2]} 25. Qxc5 {[%clk
0:02:22.9]} 25... Nbd7 {[%clk 0:00:30.4]} 26. Qd4 {[%clk 0:02:20.4]} 26... h6
{[%clk 0:00:28]} 27. Nf3 {[%clk 0:02:16.3]} 27... Re4 {[%clk 0:00:20.5]} 28. Qd2
{[%clk 0:02:13.3]} 28... fxg3 {[%clk 0:00:17.2]} 29. hxg3 {[%clk 0:02:11.3]}
29... Qf8 {[%clk 0:00:16.8]} 30. Nh4 {[%clk 0:02:09.6]} 30... Rxh4+ {[%clk
0:00:15.2]} 31. gxh4 {[%clk 0:02:09]} 31... Rb8 {[%clk 0:00:13.2]} 32. Rxa6
{[%clk 0:02:05.7]} 32... Ng4 {[%clk 0:00:06.6]} 33. Qd4 {[%clk 0:01:57.4]} 33...
Nge5 {[%clk 0:00:04.5]} 34. Re1 {[%clk 0:01:54.8]} 34... f6 {[%clk 0:00:02.4]}
35. d6 {[%clk 0:01:51.1]} 1-0

[Event "*** Titled Tuesday Blitz"]
[Site "Chess.com"]
[Date "2020.11.03"]
[Round "11"]
[White "Na_binci"]
[Black "mortngabriel"]
[Result "1-0"]
[WhiteElo "2169"]
[BlackElo "2261"]
[TimeControl "180+1"]
[EndTime "12:08:53 PST"]
[Termination "Na_binci won on time"]

1. d4 {[%clk 0:03:00.9]} 1... g6 {[%clk 0:02:43.8]} 2. c4 {[%clk 0:02:55.2]}
2... Bg7 {[%clk 0:02:44.7]} 3. Nc3 {[%clk 0:02:55.3]} 3... c5 {[%clk 0:02:44.2]}
4. d5 {[%clk 0:02:54.8]} 4... Bxc3+ {[%clk 0:02:45.1]} 5. bxc3 {[%clk
0:02:54.9]} 5... f5 {[%clk 0:02:44.3]} 6. e4 {[%clk 0:02:53.8]} 6... fxe4 {[%clk
0:02:43.5]} 7. f3 {[%clk 0:02:53.5]} 7... Nf6 {[%clk 0:02:40.4]} 8. Qc2 {[%clk
0:02:49.9]} 8... e3 {[%clk 0:02:35.5]} 9. Bxe3 {[%clk 0:02:48.5]} 9... O-O
{[%clk 0:02:36.4]} 10. h4 {[%clk 0:02:47.7]} 10... d6 {[%clk 0:02:33.3]} 11. Bd3
{[%clk 0:02:46.1]} 11... Qe8 {[%clk 0:01:15.1]} 12. Nh3 {[%clk 0:02:43.8]} 12...
e6 {[%clk 0:01:12.9]} 13. O-O-O {[%clk 0:02:18.2]} 13... exd5 {[%clk 0:00:49.9]}
14. Bh6 {[%clk 0:02:17.4]} 14... Bxh3 {[%clk 0:00:44.1]} 15. Rxh3 {[%clk
0:02:03.6]} 15... Nbd7 {[%clk 0:00:45]} 16. h5 {[%clk 0:01:58.1]} 16... g5
{[%clk 0:00:38]} 17. Bxg5 {[%clk 0:01:49.6]} 17... Qe5 {[%clk 0:00:05.6]} 18. f4
{[%clk 0:01:43.4]} 18... Qe7 {[%clk 0:00:05.4]} 19. Bh6 {[%clk 0:01:40.5]} 19...
Rf7 {[%clk 0:00:04.7]} 20. cxd5 {[%clk 0:01:33.6]} 20... Kh8 {[%clk 0:00:05.6]}
21. Bf5 {[%clk 0:01:32.3]} 21... Rg8 {[%clk 0:00:04.7]} 22. Be6 {[%clk
0:01:31.4]} 22... Ng4 {[%clk 0:00:02.9]} 23. Bg5 {[%clk 0:01:26.1]} 23... Rxg5
{[%clk 0:00:02.5]} 24. Bxf7 {[%clk 0:01:22.6]} 1-0

[Event "*** Titled Tuesday Blitz"]
[Site "Chess.com"]
[Date "2020.11.03"]
[Round "11"]
[White "Pertinhez76"]
[Black "MYMChessAcademy"]
[Result "1-0"]
[WhiteElo "2128"]
[BlackElo "2043"]
[TimeControl "180+1"]
[EndTime "12:08:55 PST"]
[Termination "Pertinhez76 won by checkmate"]

1. d4 {[%clk 0:02:52.7]} 1... Nf6 {[%clk 0:02:57.9]} 2. Nf3 {[%clk 0:02:48.3]}
2... g6 {[%clk 0:02:57.3]} 3. Bf4 {[%clk 0:02:46.9]} 3... d5 {[%clk 0:02:56.4]}
4. Nc3 {[%clk 0:02:47.1]} 4... Bg7 {[%clk 0:02:55.9]} 5. Qd2 {[%clk 0:02:46.9]}
5... O-O {[%clk 0:02:53.3]} 6. O-O-O {[%clk 0:02:46.5]} 6... Nc6 {[%clk
0:02:49.3]} 7. Bh6 {[%clk 0:02:43.4]} 7... Re8 {[%clk 0:02:39.1]} 8. Bxg7 {[%clk
0:02:38.8]} 8... Kxg7 {[%clk 0:02:40]} 9. h4 {[%clk 0:02:38.7]} 9... Ng4 {[%clk
0:02:34]} 10. e3 {[%clk 0:02:35.4]} 10... a6 {[%clk 0:02:27.1]} 11. Kb1 {[%clk
0:02:28.8]} 11... b5 {[%clk 0:02:23.5]} 12. h5 {[%clk 0:02:25.3]} 12... b4
{[%clk 0:02:21]} 13. Na4 {[%clk 0:02:23.4]} 13... Bd7 {[%clk 0:02:12.4]} 14. Nc5
{[%clk 0:02:20.9]} 14... Bf5 {[%clk 0:02:09.6]} 15. Bd3 {[%clk 0:02:13]} 15...
Bxd3 {[%clk 0:02:08.1]} 16. Nxd3 {[%clk 0:02:12.6]} 16... Nf6 {[%clk 0:02:03.6]}
17. hxg6 {[%clk 0:02:10.8]} 17... fxg6 {[%clk 0:02:01]} 18. e4 {[%clk
0:02:09.5]} 18... dxe4 {[%clk 0:01:57.5]} 19. Qh6+ {[%clk 0:02:01]} 19... Kg8
{[%clk 0:01:55.9]} 20. Ng5 {[%clk 0:01:59.2]} 20... exd3 {[%clk 0:01:52.9]} 21.
Rxd3 {[%clk 0:01:53.5]} 21... e6 {[%clk 0:01:45.4]} 22. Nxh7 {[%clk 0:01:46.2]}
22... Qe7 {[%clk 0:01:31.5]} 23. Qxg6+ {[%clk 0:01:43.3]} 23... Qg7 {[%clk
0:01:30.7]} 24. Nxf6+ {[%clk 0:01:43.2]} 24... Kf8 {[%clk 0:01:27.7]} 25. Qxg7+
{[%clk 0:01:32.6]} 25... Kxg7 {[%clk 0:01:26]} 26. Nxe8+ {[%clk 0:01:32.4]}
26... Rxe8 {[%clk 0:01:25.9]} 27. Rg3+ {[%clk 0:01:31.9]} 27... Kf6 {[%clk
0:01:25.4]} 28. c3 {[%clk 0:01:29.6]} 28... bxc3 {[%clk 0:01:24]} 29. bxc3
{[%clk 0:01:30.5]} 29... e5 {[%clk 0:01:23.6]} 30. Rh6+ {[%clk 0:01:29.8]} 30...
Kf5 {[%clk 0:01:19.6]} 31. Rxc6 {[%clk 0:01:30.7]} 31... exd4 {[%clk 0:01:19.4]}
32. cxd4 {[%clk 0:01:27.6]} 32... Re1+ {[%clk 0:01:20.3]} 33. Kb2 {[%clk
0:01:26.8]} 33... Re2+ {[%clk 0:01:20.6]} 34. Rc2 {[%clk 0:01:27]} 34... Re1
{[%clk 0:01:19.3]} 35. Rgc3 {[%clk 0:01:19]} 35... Re6 {[%clk 0:01:12.5]} 36.
Rxc7 {[%clk 0:01:18.5]} 36... Rb6+ {[%clk 0:01:12.9]} 37. Kc3 {[%clk 0:01:16.5]}
37... Re6 {[%clk 0:01:10.8]} 38. Rc5+ {[%clk 0:01:14.7]} 38... Ke4 {[%clk
0:01:09.2]} 39. Re2+ {[%clk 0:01:12.7]} 39... Kf4 {[%clk 0:01:06.2]} 40. Rxe6
{[%clk 0:01:11.2]} 40... Kg4 {[%clk 0:01:07.1]} 41. Re4# {[%clk 0:00:49.6]} 1-0